bitfinex/quotes_SOLUSD_20220228
["timestamp","ask_amount","ask_price","bid_price","bid_amount"]
[1646047288613,2.0646477,89.884,89.801,2.74678921]
[1646047289213,2.0646477,89.884,89.8,16.01]
[1646047289413,9.0846477,89.884,89.8,16.01]
[1646047289813,9.0846477,89.884,89.788,2.74678921]
[1646047290013,2.54789262,89.882,89.79,13.37]
[1646047291014,2.54789262,89.882,89.791,2.74678921]
[1646047291414,113.14789262,89.882,89.791,2.74678921]
[1646047291614,2.43073624,89.881,89.791,2.74678921]
[1646047292013,2.43073624,89.881,89.79,13.37]
[1646047292913,2.43073624,89.881,89.773,16.4593]
[1646047293317,2.43073624,89.881,89.774,2.74678921]
[1646047294214,110.6,89.879,89.774,2.74678921]
[1646047294415,2.69371752,89.878,89.774,2.74678921]
[1646047295014,2.69371752,89.878,89.748,2.74678921]
[1646047295215,110.6,89.876,89.748,2.74678921]
[1646047295415,2.59063754,89.875,89.748,2.74678921]
[1646047295817,110.6,89.874,89.748,2.74678921]
[1646047296015,110.6,89.859,89.748,2.74678921]
[1646047296215,110.6,89.857,89.748,2.74678921]
[1646047296415,2.24303632,89.856,89.748,2.74678921]
[1646047297117,2.24303632,89.856,89.751,110.6]
[1646047297516,2.24303632,89.856,89.752,2.74678921]
[1646047297717,2.24303632,89.856,89.752,25.27517996]
[1646047298216,2.24303632,89.856,89.753,2.74678921]
[1646047303823,2.24303632,89.856,89.741,2.74678921]
[1646047304030,2.23651843,89.854,89.741,2.74678921]
[1646047304422,2.23651843,89.854,89.742,40.66954421]
[1646047304624,2.63439292,89.851,89.742,63.19793496]
[1646047304824,2.63439292,89.851,89.743,154.01633342]
[1646047305026,2.63439292,89.851,89.743,176.54472417]
[1646047305226,2.63439292,89.851,89.745,66.43]
[1646047305424,2.63439292,89.851,89.75,13.37]
[1646047305825,2.63439292,89.851,89.751,2.74678921]
[1646047309027,2.63439292,89.851,89.751,18.17190028]
[1646047309229,2.63439292,89.851,89.752,110.6]
[1646047309529,2.63439292,89.851,89.753,126.02511107]
[1646047309728,2.63439292,89.851,89.753,128.77190028]
[1646047309929,2.63439292,89.851,89.754,15.42511107]
[1646047310151,2.63439292,89.851,89.754,18.17190028]
[1646047310332,2.63439292,89.851,89.755,94.42122235]
[1646047310530,2.63439292,89.851,89.763,66.43]
[1646047310734,2.46613332,89.857,89.772,110.6]
[1646047311031,2.46613332,89.857,89.781,110.6]
[1646047311532,2.46613332,89.857,89.785,110.6]
[1646047311730,2.46613332,89.857,89.785,177.03]
[1646047311930,2.46613332,89.857,89.787,110.6]
[1646047312130,2.46613332,89.857,89.8,13.37]
[1646047312735,2.46613332,89.857,89.801,2.74678921]
[1646047312932,2.46613332,89.857,89.79,2.74678921]
[1646047313133,54.90513332,89.857,89.79,2.74678921]
[1646047313337,2.27403086,89.856,89.79,2.74678921]
[1646047315337,0.1876919,89.855,89.79,2.74678921]
[1646047315939,0.1876919,89.855,89.79,16.11678921]
[1646047316340,0.1876919,89.855,89.791,2.74678921]
[1646047321062,0.1876919,89.855,89.791,113.34678921]
[1646047321361,0.1876919,89.855,89.794,66.43]
[1646047321561,0.1876919,89.855,89.795,177.03]
[1646047321764,2.83901351,89.876,89.801,110.6]
[1646047322161,2.83901351,89.876,89.804,66.43]
[1646047322660,2.83901351,89.876,89.805,2.74678921]
[1646047322861,2.83901351,89.876,89.81,13.37]
[1646047323262,0.1876919,89.876,89.811,2.74678921]
[1646047324961,2.23548784,89.904,89.811,113.34678921]
[1646047325962,2.23548784,89.904,89.812,2.74678921]
[1646047327663,2.23548784,89.904,89.804,16.7406]
[1646047327864,2.68529769,89.902,89.804,16.7406]
[1646047328665,0.1876919,89.901,89.804,16.7406]
[1646047330470,0.1876919,89.901,89.81,13.37]
[1646047330870,0.1876919,89.901,89.811,179.77678921]
[1646047331268,0.1876919,89.901,89.812,2.74678921]
[1646047332577,0.1876919,89.901,89.814,177.03]
[1646047332971,0.1876919,89.901,89.816,110.6]
[1646047333171,0.1876919,89.901,89.83,13.37]
[1646047334472,0.1876919,89.901,89.831,110.6]
[1646047334673,0.1876919,89.901,89.831,113.34678921]
[1646047334871,0.1876919,89.901,89.831,2.74678921]
[1646047335073,0.1876919,89.901,89.831,69.17678921]
[1646047335273,0.1876919,89.901,89.832,2.74678921]
[1646047335474,0.1876919,89.901,89.833,66.43]
[1646047335674,0.1876919,89.901,89.85,110.6]
[1646047335872,0.1876919,89.901,89.86,13.37]
[1646047336073,0.1876919,89.901,89.87,13.37]
[1646047336673,2.05648043,89.947,89.871,2.74678921]
[1646047337872,112.65648043,89.947,89.87,13.37]
[1646047338074,2.66039131,89.946,89.87,30.2738]
[1646047338873,2.66039131,89.946,89.85,13.37]
[1646047339076,2.66039131,89.946,89.805,66.43]
[1646047339077,2.66039131,89.946,89.84,13.37]
[1646047339677,0.1876919,89.945,89.841,110.6]
[1646047339874,0.1876919,89.945,89.841,138.59122235]
[1646047340075,0.1876919,89.945,89.842,27.99122235]
[1646047340475,0.1876919,89.945,89.843,2.74678921]
[1646047343179,0.1876919,89.945,89.84,13.37]
[1646047343678,1.9081316,89.945,89.84,13.37]
[1646047344679,1.9081316,89.945,89.831,2.74678921]
[1646047345079,1.9081316,89.945,89.832,25.24443314]
[1646047345479,1.9081316,89.945,89.833,113.34678921]
[1646047345480,0.1876919,89.945,89.833,113.34678921]
[1646047345680,0.1876919,89.945,89.833,179.77678921]
[1646047345879,0.1876919,89.945,89.834,27.99122235]
[1646047346282,0.1876919,89.945,89.835,27.99122235]
[1646047346480,0.1876919,89.945,89.835,52.16627976]
[1646047346682,0.1876919,89.945,89.836,27.99122235]
[1646047346883,0.1876919,89.945,89.84,13.37]
[1646047347283,0.1876919,89.945,89.841,24.6054]
[1646047347487,0.1876919,89.945,89.841,27.35218921]
[1646047348386,0.1876919,89.945,89.85,16.03]
[1646047349687,0.1876919,89.945,89.821,24.17505741]
[1646047349886,2.43567762,89.938,89.831,23.905]
[1646047350489,2.58417671,89.935,89.831,23.905]
[1646047350786,110.6,89.933,89.831,23.905]
[1646047350986,2.27381027,89.932,89.831,23.905]
[1646047352107,2.27381027,89.932,89.83,32.8867]
[1646047353006,2.27381027,89.932,89.83,58.13113314]
[1646047353206,2.27381027,89.932,89.83,82.30619055]
[1646047353406,0.1876919,89.931,89.83,82.30619055]
[1646047355108,0.1876919,89.931,89.831,23.1264]
[1646047357610,0.1876919,89.931,89.83,32.8867]
[1646047357813,110.7876919,89.931,89.83,32.8867]
[1646047358010,2.43752648,89.93,89.83,32.8867]
[1646047358611,0.1876919,89.929,89.83,32.8867]
[1646047360017,0.1876919,89.929,89.83,16.8567]
[1646047364124,110.7876919,89.929,89.83,16.8567]
[1646047364325,2.01371383,89.928,89.83,16.8567]
[1646047364724,0.1876919,89.927,89.83,16.8567]
[1646047365425,0.1876919,89.927,89.831,2.74678921]
[1646047365626,0.1876919,89.927,89.831,27.99122235]
[1646047366024,0.1876919,89.927,89.832,27.99122235]
[1646047366226,0.1876919,89.927,89.832,52.16627976]
[1646047366425,0.1876919,89.927,89.833,138.59122235]
[1646047366629,0.1876919,89.927,89.833,201.93385004]
[1646047366926,0.1876919,89.927,89.834,66.76795004]
[1646047367327,0.1876919,89.927,89.835,66.76795004]
[1646047367726,0.1876919,89.927,89.836,66.76795004]
[1646047367926,0.1876919,89.931,89.85,16.03]
[1646047368330,0.1876919,89.931,89.851,2.74678921]
[1646047370230,0.1876919,89.931,89.834,2.74678921]
[1646047370931,2.10194151,89.928,89.834,2.74678921]
[1646047371928,2.10194151,89.928,89.81,39.84610342]
[1646047371929,2.10194151,89.928,89.81,25.24443314]
[1646047372129,1.88656936,89.927,89.81,25.24443314]
[1646047372528,1.88656936,89.927,89.812,2.74678921]
[1646047372729,2.3436519,89.924,89.812,2.74678921]
[1646047372929,110.6,89.909,89.812,2.74678921]
[1646047373132,110.6,89.905,89.81,25.24443314]
[1646047373332,2.51384423,89.904,89.81,25.24443314]
[1646047373833,2.51384423,89.904,89.801,2.74678921]
[1646047374233,2.51384423,89.904,89.812,2.74678921]
[1646047374435,0.1876919,89.903,89.812,2.74678921]
[1646047375234,0.1876919,89.903,89.812,27.99122235]
[1646047375637,0.1876919,89.903,89.813,2.74678921]
[1646047380842,0.1876919,89.903,89.813,27.99122235]
[1646047381043,0.1876919,89.903,89.814,14.60167028]
[1646047381341,0.1876919,89.903,89.815,25.24443314]
[1646047381542,0.1876919,89.903,89.815,27.99122235]
[1646047381945,0.1876919,89.903,89.816,66.76795004]
[1646047382243,0.1876919,89.903,89.82,16.03]
[1646047382642,0.1876919,89.903,89.821,17.34845949]
[1646047383042,0.1876919,89.903,89.822,2.74678921]
[1646047385462,0.1876919,89.903,89.82,16.03]
[1646047385664,110.6,89.902,89.811,27.24828921]
[1646047385865,2.31506938,89.901,89.804,16.7406]
[1646047386064,110.6,89.899,89.804,16.7406]
[1646047386265,2.53011878,89.898,89.801,2.74678921]
[1646047386468,2.53011878,89.898,89.791,2.74678921]
[1646047386664,2.43202829,89.895,89.784,16.803]
[1646047386864,110.6,89.889,89.782,23.2469]
[1646047387067,2.60109189,89.888,89.783,2.74678921]
[1646047389172,0.1876919,89.887,89.783,2.74678921]
[1646047389372,0.1876919,89.887,89.783,2.71345211]
[1646047389569,0.1876919,89.887,89.784,2.74678921]
[1646047389769,0.1876919,89.887,89.782,39.9055]
[1646047389970,0.1876919,89.887,89.784,2.74678921]
[1646047393376,0.1876919,89.887,89.772,24.329]
[1646047393777,0.1876919,89.887,89.773,2.74678921]
[1646047394578,0.1876919,89.887,89.772,24.329]
[1646047395479,110.6,89.886,89.772,24.329]
[1646047395678,110.6,89.884,89.772,24.329]
[1646047395878,110.6,89.879,89.772,24.329]
[1646047396079,110.6,89.877,89.772,24.329]
[1646047396278,110.6,89.875,89.772,24.329]
[1646047396480,2.63968053,89.874,89.772,24.329]
[1646047396882,110.6,89.872,89.772,24.329]
[1646047397080,2.36668271,89.871,89.772,24.329]
[1646047397481,2.36668271,89.871,89.773,110.6]
[1646047397680,2.36668271,89.871,89.78,16.03]
[1646047398282,2.36668271,89.871,89.781,64.02116083]
[1646047398481,2.36668271,89.871,89.782,110.6]
[1646047398682,2.36668271,89.871,89.782,150.44610342]
[1646047398883,2.36668271,89.871,89.783,38.77672769]
[1646047399083,0.1876919,89.87,89.783,38.77672769]
[1646047399284,0.1876919,89.87,89.784,14.60167028]
[1646047404792,0.1876919,89.87,89.785,25.24443314]
[1646047405095,0.1876919,89.87,89.785,39.84610342]
[1646047405294,0.1876919,89.87,89.785,42.59289263]
[1646047405594,0.1876919,89.87,89.786,2.74678921]
[1646047405793,0.1876919,89.87,89.8,16.03]
[1646047406194,0.1876919,89.87,89.801,2.74678921]
[1646047409200,0.1876919,89.87,89.8,16.03]
[1646047409398,0.1876919,89.87,89.79,2.74678921]
[1646047413129,0.1876919,89.87,89.79,18.77678921]
[1646047413530,0.1876919,89.87,89.791,2.74678921]
[1646047414833,0.1876919,89.87,89.791,113.34678921]
[1646047415030,0.1876919,89.87,89.791,134.72845949]
[1646047415232,0.1876919,89.87,89.793,110.6]
[1646047415531,0.1876919,89.87,89.795,177.03]
[1646047415735,0.1876919,89.87,89.81,16.03]
[1646047415937,0.1876919,89.87,89.81,24.67]
[1646047416333,0.1876919,89.87,89.811,2.74678921]
[1646047416532,0.1876919,89.875,89.811,2.74678921]
[1646047417133,0.1876919,89.875,89.815,110.6]
[1646047417434,0.1876919,89.875,89.815,177.03]
[1646047417634,0.1876919,89.875,89.817,177.03]
[1646047417833,0.1876919,89.875,89.83,16.03]
[1646047418035,0.1876919,89.875,89.83,24.31]
[1646047418442,0.1876919,89.875,89.831,2.74678921]
[1646047418635,0.1876919,89.875,89.831,205.02122235]
[1646047418835,0.1876919,89.875,89.833,177.03]
[1646047419236,0.1876919,89.875,89.835,66.43]
[1646047419436,0.1876919,89.875,89.836,110.6]
[1646047419635,0.1876919,89.875,89.85,16.03]
[1646047419836,2.07525213,89.92,89.85,16.03]
[1646047422337,2.07525213,89.92,89.851,2.74678921]
[1646047422941,0.1876919,89.919,89.851,2.74678921]
[1646047426940,0.1876919,89.919,89.853,66.43]
[1646047427342,0.1876919,89.919,89.854,2.74678921]
[1646047427744,0.1876919,89.919,89.856,110.6]
[1646047427942,0.1876919,89.919,89.87,16.03]
[1646047428444,0.1876919,89.919,89.871,2.74678921]
[1646047428643,0.1876919,89.919,89.873,66.43]
[1646047428843,2.27775475,89.944,89.873,177.03]
[1646047429043,2.27775475,89.944,89.874,2.74678921]
[1646047429242,2.00123699,89.942,89.874,2.74678921]
[1646047429742,2.00123699,89.942,89.874,69.17678921]
[1646047430144,2.00123699,89.942,89.875,2.74678921]
[1646047430345,2.00123699,89.942,89.891,110.6]
[1646047430542,0.1876919,89.944,89.894,66.43]
[1646047430744,0.1876919,89.944,89.895,177.03]
[1646047430942,0.1876919,89.944,89.895,201.20505741]
[1646047431143,0.1876919,89.944,89.897,110.6]
[1646047431343,0.1876919,89.944,89.911,110.6]
[1646047431543,0.1876919,89.944,89.91,16.03]
[1646047431943,0.1876919,89.944,89.912,2.74678921]
[1646047432443,83.7922919,89.945,89.914,66.43]
[1646047432644,83.7922919,89.945,89.915,177.03]
[1646047432849,5.59002399,89.945,89.931,110.6]
[1646047433045,5.59002399,89.945,89.93,16.03]
[1646047433046,2.70906352,90.026,89.932,177.03]
[1646047433354,49.82505517,90.025,89.932,201.38845949]
[1646047433548,2.35369221,90.024,89.934,177.03]
[1646047433845,2.35369221,90.024,89.936,177.03]
[1646047434048,2.35369221,90.024,89.951,110.6]
[1646047434248,2.10817023,90.023,89.95,16.03]
[1646047434449,2.10817023,90.023,89.951,4.445]
[1646047434649,2.10817023,90.023,89.952,2.74678921]
[1646047436550,2.06910305,90.023,89.952,2.74678921]
[1646047436750,2.06910305,90.023,89.95,16.03]
[1646047437050,2.06910305,90.023,89.931,4.445]
[1646047437450,2.06910305,90.023,89.93,32.8953]
[1646047437652,2.06910305,90.023,89.932,2.74678921]
[1646047438951,2.06910305,90.023,89.933,27.65075455]
[1646047439151,2.06910305,90.023,89.934,4.445]
[1646047439751,2.06910305,90.023,89.935,2.74678921]
[1646047439953,2.06910305,90.023,89.94,16.03]
[1646047441156,2.06910305,90.023,89.941,113.34678921]
[1646047441358,2.06910305,90.023,89.942,181.475]
[1646047441559,2.06910305,90.023,89.942,184.22178921]
[1646047441757,2.06910305,90.023,89.944,177.03]
[1646047441958,2.06910305,90.023,89.945,4.445]
[1646047442159,2.06910305,90.023,89.946,177.03]
[1646047442358,2.06910305,90.023,89.961,110.6]
[1646047442562,2.06910305,90.023,89.962,4.444]
[1646047442758,2.06910305,90.023,89.962,27.65075455]
[1646047442958,110.6,90.061,89.963,7.19078921]
[1646047442959,2.57501977,90.06,89.963,7.19078921]
[1646047443458,2.57501977,90.06,89.964,30.39754376]
[1646047443658,52.75132418,90.059,89.965,4.442]
[1646047443858,2.11027904,90.058,89.98,16.03]
[1646047444059,2.11027904,90.058,89.981,4.442]
[1646047444464,2.11027904,90.058,89.982,2.74678921]
[1646047444659,2.11027904,90.058,89.983,4.442]
[1646047445061,2.11027904,90.058,89.984,2.74678921]
[1646047445462,2.11027904,90.058,89.985,70.872]
[1646047445664,1.97946274,90.084,89.989,66.43]
[1646047445864,1.97946274,90.084,90.001,110.6]
[1646047446063,1.97946274,90.084,90.0,16.03]
[1646047446064,1.97946274,90.084,90.01,16.03]
[1646047446263,53.94066476,90.083,90.011,4.442]
[1646047446463,2.49398412,90.082,90.011,4.442]
[1646047446662,113.09398412,90.082,90.012,2.74678921]
[1646047446962,2.4059175,90.081,90.012,2.74678921]
[1646047447163,2.4059175,90.081,90.002,2.74678921]
[1646047447365,2.4059175,90.081,89.991,2.74678921]
[1646047448169,4.442,90.08,89.971,2.74678921]
[1646047448367,0.89355695,90.08,89.991,2.74678921]
[1646047448566,0.89355695,90.08,89.992,4.442]
[1646047448768,2.13367947,90.079,89.991,2.74678921]
[1646047448967,4.442,90.078,89.98,16.03]
[1646047450172,2.13367947,90.079,89.981,4.442]
[1646047450372,2.13367947,90.079,89.981,7.18878921]
[1646047453085,4.442,90.078,89.981,2.74678921]
[1646047453287,110.6,90.077,89.964,2.74678921]
[1646047453484,110.6,90.075,89.965,4.442]
[1646047453686,110.6,90.073,89.965,4.442]
[1646047453888,110.6,90.069,89.966,2.74678921]
[1646047454086,16.03,90.07,89.966,2.74678921]
[1646047454087,110.6,90.067,89.966,2.74678921]
[1646047454288,110.6,90.065,89.966,2.74678921]
[1646047454487,23.78185695,90.072,89.966,2.74678921]
[1646047454488,110.6,90.059,89.966,2.74678921]
[1646047454686,2.36553861,90.056,89.966,2.74678921]
[1646047454887,110.6,90.054,89.966,2.74678921]
[1646047455088,110.6,90.052,89.966,2.74678921]
[1646047455287,53.36162137,90.055,89.966,2.74678921]
[1646047455288,2.02081533,90.049,89.966,2.74678921]
[1646047456288,2.02081533,90.049,89.967,24.79264408]
[1646047456690,2.02081533,90.049,89.968,7.19078921]
[1646047456889,2.02081533,90.049,89.968,2.74678921]
[1646047457092,2.02081533,90.049,89.969,2.74678921]
[1646047459398,2.02081533,90.049,89.952,2.74678921]
[1646047459792,2.02081533,90.049,89.954,2.74678921]
[1646047459992,2.02081533,90.049,89.955,4.444]
[1646047460192,2.02081533,90.049,89.954,2.74678921]
[1646047460392,2.02081533,90.049,89.956,2.74678921]
[1646047460591,2.02081533,90.049,89.957,4.444]
[1646047460793,2.02081533,90.049,89.96,16.03]
[1646047460996,2.02081533,90.049,89.961,4.444]
[1646047461194,2.02081533,90.049,89.961,31.98343329]
[1646047461393,2.02081533,90.049,89.961,57.09791607]
[1646047461594,2.02081533,90.049,89.962,27.86127199]
[1646047461793,2.02081533,90.049,89.962,52.65391607]
[1646047461994,2.02081533,90.049,89.963,2.74678921]
[1646047463193,2.02081533,90.049,89.951,2.74678921]
[1646047463395,110.6,90.048,89.951,2.74678921]
[1646047463596,110.6,90.046,89.961,2.74678921]
[1646047463793,2.51957581,90.045,89.951,2.74678921]
[1646047463994,110.6,90.044,89.951,2.74678921]
[1646047464195,2.64046191,90.043,89.951,2.74678921]
[1646047464796,110.6,90.039,89.933,2.74678921]
[1646047464996,2.68398592,90.038,89.937,2.74678921]
[1646047465395,2.68398592,90.038,89.938,25.11448278]
[1646047465596,2.68398592,90.038,89.939,4.445]
[1646047465796,2.68398592,90.038,89.939,7.19178921]
[1646047465998,2.68398592,90.038,89.94,27.86127199]
[1646047466200,2.68398592,90.038,89.941,4.444]
[1646047466398,2.68398592,90.038,89.941,32.30527199]
[1646047466598,2.68398592,90.038,89.942,27.86127199]
[1646047467000,2.68398592,90.038,89.943,27.53943329]
[1646047467401,2.68398592,90.038,89.944,2.74678921]
[1646047468601,2.68398592,90.038,89.945,4.444]
[1646047469002,2.68398592,90.038,89.946,2.74678921]
[1646047470701,2.46822476,90.043,89.946,2.74678921]
[1646047471101,4.444,90.042,89.946,2.74678921]
[1646047471305,2.46193362,90.04,89.946,2.74678921]
[1646047471502,2.64022618,90.038,89.946,2.74678921]
[1646047472704,2.64022618,90.038,89.947,25.11448278]
[1646047473105,2.64022618,90.038,89.948,2.74678921]
[1646047476511,115.044,90.044,89.948,2.74678921]
[1646047476707,2.45624318,90.043,89.95,16.03]
[1646047477107,2.45624318,90.043,89.951,2.74678921]
[1646047477707,2.45624318,90.043,89.952,24.79264408]
[1646047477907,2.45624318,90.043,89.952,39.48098102]
[1646047478108,2.45624318,90.043,89.953,27.86127199]
[1646047478308,2.45624318,90.043,89.954,66.43]
[1646047478509,2.45624318,90.043,89.954,108.97960893]
[1646047478809,2.45624318,90.043,89.955,83.86512615]
[1646047479015,2.45624318,90.043,89.955,108.65777023]
[1646047479208,2.45624318,90.043,89.956,42.22777023]
[1646047479409,2.45624318,90.043,89.96,16.03]
[1646047479809,2.45624318,90.043,89.961,2.74678921]
[1646047481412,2.45624318,90.043,89.962,25.11448278]
[1646047481615,2.45624318,90.043,89.962,49.90712686]
[1646047481814,2.45624318,90.043,89.962,52.65391607]
[1646047482012,2.45624318,90.043,89.963,49.90712686]
[1646047482411,2.45624318,90.043,89.964,52.65391607]
[1646047482812,2.45624318,90.043,89.965,27.53943329]
[1646047483011,2.45624318,90.043,89.97,16.03]
[1646047483412,2.45624318,90.043,89.971,2.74678921]
[1646047484613,2.45624318,90.043,89.972,176.32213047]
[1646047484813,1.99488808,90.054,89.972,176.32213047]
[1646047485014,1.99488808,90.054,89.973,68.46891968]
[1646047485513,1.99488808,90.054,89.974,68.46891968]
[1646047485914,1.99488808,90.054,89.975,68.46891968]
[1646047486216,1.99488808,90.054,89.975,52.65391607]
[1646047486435,1.99488808,90.054,89.977,110.6]
[1646047486635,1.99488808,90.054,89.99,16.03]
[1646047487040,1.99488808,90.054,89.991,2.74678921]
[1646047487640,112.59488808,90.054,89.99,16.03]
[1646047487838,2.36650584,90.053,89.99,16.03]
[1646047488038,2.44923683,90.052,89.99,16.03]
[1646047488538,113.04923683,90.052,89.99,16.03]
[1646047488738,2.47454439,90.051,89.977,16.5427]
[1646047488937,2.47454439,90.051,89.965,15.81500361]
[1646047489340,2.47454439,90.051,89.971,2.74678921]
[1646047493942,2.47454439,90.051,89.954,23.3557]
[1646047494346,4.444,90.05,89.955,2.74678921]
[1646047495448,2.47454439,90.051,89.955,2.74678921]
[1646047497447,2.47454439,90.051,89.955,27.53943329]
[1646047497848,2.47454439,90.051,89.956,2.74678921]
[1646047498048,2.47454439,90.051,89.97,16.03]
[1646047498450,2.47454439,90.051,89.971,2.74678921]
[1646047498650,2.47454439,90.051,89.971,52.65391607]
[1646047498856,2.47454439,90.051,89.972,24.79264408]
[1646047499052,2.47454439,90.051,89.972,27.53943329]
[1646047499253,2.47454439,90.051,89.972,24.79264408]
[1646047499554,2.47454439,90.051,89.973,2.74678921]
[1646047502555,2.47454439,90.051,89.975,66.43]
[1646047502954,2.44141266,90.072,89.977,110.6]
[1646047503153,2.44141266,90.072,89.99,16.03]
[1646047503554,2.44141266,90.072,89.991,24.79264408]
[1646047503754,57.06043011,90.071,89.991,27.53943329]
[1646047503961,2.29773321,90.07,89.992,2.74678921]
[1646047507661,2.29773321,90.07,89.992,179.77678921]
[1646047507960,2.29773321,90.07,89.993,2.74678921]
[1646047508360,2.29773321,90.07,89.995,66.43]
[1646047508561,2.29773321,90.07,90.01,16.03]
[1646047509162,2.6154113,90.096,90.011,221.75619209]
[1646047509561,2.6154113,90.096,90.013,177.03]
[1646047509764,2.36132817,90.125,90.013,177.03]
[1646047509962,60.25107316,90.104,90.021,110.6]
[1646047510163,2.29910043,90.103,90.031,110.6]
[1646047510362,2.29910043,90.103,90.031,133.7055]
[1646047510563,2.60950002,90.123,90.032,155.32619209]
[1646047510765,2.60950002,90.123,90.032,180.11883617]
[1646047510964,2.60950002,90.123,90.036,110.6]
[1646047511163,2.60950002,90.123,90.05,16.03]
[1646047511364,52.40086616,90.122,90.05,23.7]
[1646047511566,2.59153217,90.121,90.05,48.90331611]
[1646047511763,2.59153217,90.121,90.052,177.03]
[1646047512165,2.59153217,90.121,90.054,66.43]
[1646047512565,110.6,90.154,90.056,66.43]
[1646047512763,48.5563,90.155,90.056,66.43]
[1646047512764,2.57046117,90.153,90.07,16.03]
[1646047512965,2.57046117,90.153,90.07,24.88]
[1646047513366,59.34229154,90.128,90.071,2.74678921]
[1646047513566,59.34229154,90.128,90.07,16.03]
[1646047513766,2.60768724,90.127,90.071,2.74678921]
[1646047514766,2.60768724,90.127,90.071,113.34678921]
[1646047514968,59.34229154,90.128,90.071,113.34678921]
[1646047515166,2.58147459,90.141,90.071,113.34678921]
[1646047515366,2.21288037,90.154,90.071,130.21170931]
[1646047515667,2.21288037,90.154,90.072,25.20331611]
[1646047516067,2.21288037,90.154,90.073,2.74678921]
[1646047516266,1.97137913,90.147,90.073,179.77678921]
[1646047516467,2.52256533,90.177,90.075,177.03]
[1646047516668,2.52256533,90.177,90.09,16.03]
[1646047516870,2.52256533,90.177,90.091,110.6]
[1646047517069,2.52256533,90.177,90.092,66.43]
[1646047517271,45.84788478,90.163,90.092,91.22264408]
[1646047517472,2.08417599,90.162,90.093,16.8649201]
[1646047517672,2.08417599,90.162,90.093,2.74678921]
[1646047517876,52.51928386,90.135,90.093,2.74678921]
[1646047518076,24.1366,90.178,90.09,16.03]
[1646047518277,2.23613107,90.177,90.09,16.03]
[1646047518675,112.83613107,90.177,90.091,2.74678921]
[1646047518877,2.23613107,90.177,90.091,2.74678921]
[1646047519076,2.0111787,90.139,90.09,16.03]
[1646047519684,2.0111787,90.139,90.091,2.74678921]
[1646047520295,2.25622642,90.176,90.091,2.74678921]
[1646047521198,45.53150635,90.154,90.091,2.74678921]
[1646047521399,2.51715716,90.153,90.091,2.74678921]
[1646047522298,2.51715716,90.153,90.09,16.03]
[1646047522798,2.10562528,90.151,90.09,16.03]
[1646047526401,9.92562528,90.151,90.06,18.77678921]
[1646047526600,9.92562528,90.151,90.05,16.6765]
[1646047527002,4.439,90.15,90.028,2.74678921]
[1646047527202,119.13064419,90.15,90.03,16.03]
[1646047527404,2.11609955,90.149,90.03,16.03]
[1646047527603,4.44,90.148,90.03,16.03]
[1646047528103,4.44,90.148,90.031,22.53931075]
[1646047528303,2.11609955,90.149,90.032,66.43]
[1646047528503,2.11609955,90.149,90.032,69.17678921]
[1646047528703,2.11609955,90.149,90.034,66.43]
[1646047528905,2.11609955,90.149,90.038,66.43]
[1646047529107,2.11609955,90.149,90.05,16.03]
[1646047529303,2.11609955,90.149,90.051,24.2792]
[1646047530104,2.11609955,90.149,90.052,2.74678921]
[1646047530906,2.11609955,90.149,90.053,26.97831075]
[1646047531306,2.11609955,90.149,90.054,22.53931075]
[1646047531509,2.11609955,90.149,90.055,4.439]
[1646047531708,2.11609955,90.149,90.06,16.03]
[1646047531908,2.11609955,90.149,90.061,4.439]
[1646047532610,2.11609955,90.149,90.051,24.2792]
[1646047532611,2.11609955,90.149,90.054,4.439]
[1646047532809,2.02017329,90.147,90.052,4.439]
[1646047533011,2.02017329,90.147,90.04,16.03]
[1646047533012,2.02017329,90.147,90.049,16.2536]
[1646047533211,2.02017329,90.147,90.05,4.439]
[1646047533610,2.02017329,90.147,90.041,22.72]
[1646047533812,2.15168609,90.145,90.042,4.439]
[1646047535411,4.439,90.144,90.041,22.72]
[1646047537414,2.15168609,90.145,90.041,22.72]
[1646047537612,2.15168609,90.145,90.042,4.439]
[1646047539516,4.439,90.144,90.041,22.72]
[1646047544427,2.15168609,90.145,90.041,22.72]
[1646047545927,4.439,90.144,90.04,16.03]
[1646047547226,1.75920984,90.143,90.04,16.03]
[1646047547427,110.6,90.139,90.029,23.4709]
[1646047547627,2.3457699,90.138,90.029,23.4709]
[1646047547829,2.3457699,90.138,90.03,47.7364195]